fUST/lending_fUST_20250827
["ID","MTS","AMOUNT","RATE_DAILY","PERIOD"]
[381614482,1756296656809,-480.0,0.00022191,2]
[381614484,1756296656819,-480.0,0.00022191,2]
[381614486,1756296656828,-480.0,0.00022191,2]
[381614488,1756296656837,-480.0,0.00022191,2]
[381614490,1756296656849,-480.0,0.00022191,2]
[381614492,1756296656859,-493.22,0.00022191,2]
[381614494,1756296656868,-480.0,0.00022191,2]
[381614496,1756296656878,-480.0,0.00022191,2]
[381614498,1756296656887,-480.0,0.00022191,2]
[381614500,1756296656897,-480.0,0.00022191,2]
[381614502,1756296656906,-480.0,0.00022191,2]
[381614504,1756296656915,-480.0,0.00022191,2]
[381614506,1756296656925,-480.0,0.00022191,2]
[381614508,1756296656935,-480.0,0.00022191,2]
[381614510,1756296656943,-480.0,0.00022191,2]
[381614512,1756296656954,-480.0,0.00022191,2]
[381614514,1756296656963,-480.0,0.00022191,2]
[381614516,1756296656973,-501.06,0.00022191,2]
[381614518,1756296656983,-507.35,0.00022191,2]
[381614521,1756296656993,-480.0,0.00022191,2]
[381614523,1756296657002,-480.0,0.00022191,2]
[381614524,1756296657012,-480.0,0.00022191,2]
[381614526,1756296657022,-480.0,0.00022191,2]
[381614529,1756296657032,-480.0,0.00022191,2]
[381614534,1756296657077,-480.0,0.00022191,2]
[381614536,1756296657086,-480.0,0.00022191,2]
[381614538,1756296657096,-480.0,0.00022191,2]
[381614540,1756296657105,-480.0,0.00022191,2]
[381614542,1756296657115,-480.0,0.00022191,2]
[381614544,1756296657124,-480.0,0.00022191,2]
[381614546,1756296657133,-480.0,0.00022191,2]
[381614548,1756296657144,-480.0,0.00022191,2]
[381614550,1756296657154,-480.0,0.00022191,2]
[381614552,1756296657163,-503.83,0.00022191,2]
[381614555,1756296657173,-480.0,0.00022191,2]
[381614556,1756296657182,-480.0,0.00022191,2]
[381614558,1756296657191,-480.0,0.00022191,2]
[381614560,1756296657200,-480.0,0.00022191,2]
[381614562,1756296657210,-480.0,0.00022191,2]
[381614564,1756296657219,-480.0,0.00022191,2]
[381614566,1756296657228,-480.0,0.00022191,2]
[381614568,1756296657237,-480.0,0.00022191,2]
[381614570,1756296657246,-480.0,0.00022191,2]
[381614572,1756296657256,-480.0,0.00022191,2]
[381614574,1756296657268,-480.0,0.00022191,2]
[381614576,1756296657277,-480.0,0.00022191,2]
[381614578,1756296657287,-480.0,0.00022191,2]
[381614580,1756296657297,-480.0,0.00022191,2]
[381614582,1756296657306,-480.0,0.00022191,2]
[381614584,1756296657316,-480.0,0.00022191,2]
[381614586,1756296657325,-480.0,0.00022191,2]
[381614588,1756296657334,-480.0,0.00022191,2]
[381614590,1756296657343,-480.0,0.00022191,2]
[381614592,1756296657352,-480.0,0.00022191,2]
[381614594,1756296657362,-183.92733411,0.00022191,2]
[381614596,1756296657371,-480.0,0.00022191,2]
[381614598,1756296657380,-480.0,0.00022191,2]
[381614600,1756296657390,-480.0,0.00022191,2]
[381614602,1756296657399,-480.0,0.00022191,2]
[381614604,1756296657408,-480.0,0.00022191,2]
[381614606,1756296657417,-480.0,0.00022191,2]
[381614608,1756296657426,-596.07,0.00022191,2]
[381614610,1756296657437,-480.0,0.00022191,2]
[381614611,1756296657449,-480.0,0.00022191,2]
[381614613,1756296657460,-480.0,0.00022191,2]
[381614616,1756296657470,-696.73,0.00022191,2]
[381614617,1756296657481,-480.0,0.00022191,2]
[381614619,1756296657490,-480.0,0.00022191,2]
[381614621,1756296657500,-480.0,0.00022191,2]
[381614624,1756296657509,-480.0,0.00022191,2]
[381614625,1756296657523,-220.98055773,0.00022191,2]
[381614627,1756296657533,-480.0,0.00022191,2]
[381614629,1756296657542,-480.0,0.00022191,2]
[381614631,1756296657552,-482.92893894,0.00022191,2]
[381614633,1756296657561,-480.0,0.00022191,2]
[381614635,1756296657570,-480.0,0.00022191,2]
[381614637,1756296657579,-480.0,0.00022191,2]
[381614639,1756296657588,-480.0,0.00022191,2]
[381614641,1756296657597,-480.0,0.00022191,2]
[381614643,1756296657607,-480.0,0.00022191,2]
[381614645,1756296657616,-591.62,0.00022191,2]
[381614647,1756296657625,-480.0,0.00022191,2]
[381614649,1756296657635,-480.0,0.00022191,2]
[381614651,1756296657643,-480.0,0.00022191,2]
[381614653,1756296657653,-480.0,0.00022191,2]
[381614655,1756296657662,-480.0,0.00022191,2]
[381614657,1756296657673,-480.0,0.00022191,2]
[381614659,1756296657682,-480.0,0.00022191,2]
[381614661,1756296657692,-480.0,0.00022191,2]
[381614664,1756296657701,-480.0,0.00022191,2]
[381614666,1756296657711,-480.0,0.00022191,2]
[381614668,1756296657720,-480.0,0.00022191,2]
[381614669,1756296657730,-889.91,0.00022191,2]
[381614671,1756296657740,-480.0,0.00022191,2]
[381614674,1756296657750,-480.0,0.00022191,2]
[381614675,1756296657759,-480.0,0.00022191,2]
[381614678,1756296657772,-480.0,0.00022191,2]
[381614679,1756296657781,-525.55,0.00022191,2]
[381614681,1756296657790,-480.0,0.00022191,2]
[381614683,1756296657799,-587.34,0.00022191,2]
[381614685,1756296657808,-480.0,0.00022191,2]
[381614687,1756296657821,-500.0,0.00022191,2]
[381614689,1756296657830,-480.0,0.00022191,2]
[381614692,1756296657840,-480.0,0.00022191,2]
[381614694,1756296657849,-480.0,0.00022191,2]
[381614695,1756296657859,-202.46,0.00022191,2]
[381614698,1756296657869,-480.0,0.00022191,2]
[381614699,1756296657878,-480.0,0.00022191,2]
[381614701,1756296657887,-480.0,0.00022191,2]
[381614703,1756296657897,-480.0,0.00022191,2]
[381614705,1756296657906,-480.0,0.00022191,2]
[381614707,1756296657916,-480.0,0.00022191,2]
[381614709,1756296657926,-480.0,0.00022191,2]
[381614711,1756296657936,-480.0,0.00022191,2]
[381614712,1756296657947,-579.11,0.00022191,2]
[381614713,1756296657957,-2831.04,0.00022191,2]
[381614714,1756296657966,-480.0,0.00022191,2]
[381614715,1756296657975,-480.0,0.00022191,2]
[381614716,1756296657984,-549.5,0.00022191,2]
[381614717,1756296657994,-480.0,0.00022191,2]
[381614718,1756296658003,-563.33,0.00022191,2]
[381614719,1756296658013,-480.0,0.00022191,2]
[381614720,1756296658022,-480.0,0.00022191,2]
[381614721,1756296658031,-480.0,0.00022191,2]
[381614723,1756296658040,-499.86,0.00022191,2]
[381614725,1756296658050,-530.94,0.00022191,2]
[381614727,1756296658059,-189.79092938,0.00022191,2]
[381614729,1756296658068,-480.0,0.00022191,2]
[381614731,1756296658078,-480.0,0.00022191,2]
[381614733,1756296658087,-580.67,0.00022191,2]
[381614735,1756296658096,-480.0,0.00022191,2]
[381614737,1756296658106,-480.0,0.00022191,2]
[381614739,1756296658115,-599.59221662,0.00022191,2]
[381614741,1756296658124,-480.0,0.00022191,2]
[381614743,1756296658134,-480.0,0.00022191,2]
[381614745,1756296658143,-480.0,0.00022191,2]
[381614747,1756296658152,-480.0,0.00022191,2]
[381614749,1756296658162,-582.13,0.00022191,2]
[381614751,1756296658172,-480.0,0.00022191,2]
[381614753,1756296658183,-480.0,0.00022191,2]
[381614755,1756296658192,-578.64,0.00022191,2]
[381614757,1756296658201,-480.0,0.00022191,2]
[381614759,1756296658210,-480.0,0.00022191,2]
[381614761,1756296658220,-480.0,0.00022191,2]
[381614763,1756296658230,-480.0,0.00022191,2]
[381614765,1756296658239,-480.0,0.00022191,2]
[381614767,1756296658248,-480.0,0.00022191,2]
[381614769,1756296658258,-480.0,0.00022191,2]
[381614771,1756296658268,-524.45,0.00022191,2]
[381614773,1756296658278,-480.0,0.00022191,2]
[381614775,1756296658287,-480.0,0.00022191,2]
[381614777,1756296658296,-480.0,0.00022191,2]
[381614779,1756296658305,-480.0,0.00022191,2]
[381614781,1756296658314,-480.0,0.00022191,2]
[381614783,1756296658324,-480.0,0.00022191,2]
[381614785,1756296658333,-480.0,0.00022191,2]
[381614787,1756296658342,-480.0,0.00022191,2]
[381614789,1756296658352,-624.24,0.00022191,2]
[381614791,1756296658361,-1976.77,0.00022191,2]
[381614793,1756296658371,-730.77,0.00022191,2]
[381614795,1756296658380,-480.0,0.00022191,2]
[381614797,1756296658389,-480.0,0.00022191,2]
[381614799,1756296658398,-480.0,0.00022191,2]
[381614801,1756296658407,-480.0,0.00022191,2]
[381614803,1756296658416,-480.0,0.00022191,2]
[381614805,1756296658425,-480.0,0.00022191,2]
[381614807,1756296658436,-480.0,0.00022191,2]
[381614809,1756296658447,-480.0,0.00022191,2]
[381614811,1756296658457,-480.0,0.00022191,2]
[381614813,1756296658466,-962.11,0.00022191,2]
[381614815,1756296658477,-1010.25,0.00022191,2]
[381614817,1756296658486,-480.0,0.00022191,2]
[381614819,1756296658495,-480.0,0.00022191,2]
[381614821,1756296658505,-480.0,0.00022191,2]
[381614823,1756296658515,-480.0,0.00022191,2]
[381614825,1756296658524,-1167.07,0.00022191,2]
[381614827,1756296658534,-536.98,0.00022191,2]
[381614829,1756296658544,-789.14,0.00022191,2]
[381614831,1756296658553,-480.0,0.00022191,2]
[381614833,1756296658562,-480.0,0.00022191,2]
[381614835,1756296658572,-480.0,0.00022191,2]
[381614837,1756296658582,-480.0,0.00022191,2]
[381614839,1756296658591,-480.0,0.00022191,2]
[381614841,1756296658600,-716.92,0.00022191,2]
[381614843,1756296658610,-672.22,0.00022191,2]
[381614845,1756296658619,-554.89,0.00022191,2]
[381614847,1756296658632,-480.0,0.00022191,2]
[381614849,1756296658641,-480.0,0.00022191,2]
[381614851,1756296658654,-480.0,0.00022191,2]
[381614853,1756296658664,-480.0,0.00022191,2]
[381614855,1756296658673,-480.0,0.00022191,2]
[381614857,1756296658682,-480.0,0.00022191,2]
[381614859,1756296658691,-518.24,0.00022191,2]
[381614860,1756296658700,-480.0,0.00022191,2]
[381614862,1756296658709,-480.0,0.00022191,2]
[381614864,1756296658718,-480.0,0.00022191,2]
[381614867,1756296658728,-480.0,0.00022191,2]
[381614869,1756296658737,-879.63,0.00022191,2]
[381614870,1756296658746,-480.0,0.00022191,2]
[381614873,1756296658756,-480.0,0.00022191,2]
[381614875,1756296658767,-645.5,0.00022191,2]
[381614877,1756296658776,-480.0,0.00022191,2]
[381614879,1756296658785,-480.0,0.00022191,2]
[381614881,1756296658794,-480.0,0.00022191,2]
[381614883,1756296658803,-1613.1,0.00022191,2]
[381614885,1756296658812,-480.0,0.00022191,2]
[381614887,1756296658821,-480.0,0.00022191,2]
[381614889,1756296658830,-514.7,0.00022191,2]
[381614891,1756296658839,-480.0,0.00022191,2]
[381614893,1756296658848,-480.0,0.00022191,2]
[381614895,1756296658857,-505.32,0.00022191,2]
[381614897,1756296658866,-480.0,0.00022191,2]
[381614899,1756296658875,-815.12,0.00022191,2]
[381614901,1756296658884,-480.0,0.00022191,2]
[381614903,1756296658893,-480.0,0.00022191,2]
[381614905,1756296658902,-480.0,0.00022191,2]
[381614907,1756296658912,-480.0,0.00022191,2]
[381614909,1756296658921,-480.0,0.00022191,2]
[381614911,1756296658930,-480.0,0.00022191,2]
[381614912,1756296658939,-480.0,0.00022191,2]
[381614915,1756296658948,-480.0,0.00022191,2]
[381614916,1756296658958,-480.0,0.00022191,2]
[381614919,1756296658967,-1939.66,0.00022191,2]
[381614921,1756296658977,-480.0,0.00022191,2]
[381614923,1756296658986,-480.0,0.00022191,2]
[381614925,1756296658996,-480.0,0.00022191,2]
[381614927,1756296659005,-3277.05,0.00022191,2]
[381614929,1756296659015,-480.0,0.00022191,2]
[381614930,1756296659025,-480.0,0.00022191,2]
[381614932,1756296659034,-480.0,0.00022191,2]
[381614934,1756296659043,-480.0,0.00022191,2]
[381614936,1756296659053,-516.23,0.00022191,2]
[381614939,1756296659063,-480.0,0.00022191,2]
[381614940,1756296659072,-480.0,0.00022191,2]
[381614943,1756296659082,-480.0,0.00022191,2]
[381614945,1756296659092,-529.27,0.00022191,2]
[381614947,1756296659101,-480.0,0.00022191,2]
[381614949,1756296659111,-480.0,0.00022191,2]
[381614951,1756296659121,-1563.34,0.00022191,2]
[381614953,1756296659131,-480.0,0.00022191,2]
[381614955,1756296659140,-480.0,0.00022191,2]
[381614957,1756296659150,-480.0,0.00022191,2]
[381614959,1756296659159,-534.69,0.00022191,2]
[381614961,1756296659168,-483.40621914,0.00022191,2]
[381614963,1756296659178,-697.15,0.00022191,2]
[381614965,1756296659187,-480.0,0.00022191,2]
[381614967,1756296659197,-482.60154684,0.00022191,2]
[381614968,1756296659207,-480.0,0.00022191,2]
[381614970,1756296659216,-480.0,0.00022191,2]
[381614972,1756296659226,-480.0,0.00022191,2]
[381614974,1756296659235,-1026.35,0.00022191,2]
[381614976,1756296659244,-480.0,0.00022191,2]
[381614978,1756296659253,-619.57,0.00022191,2]
[381614981,1756296659265,-563.41,0.00022191,2]
[381614982,1756296659274,-480.0,0.00022191,2]
[381614984,1756296659283,-480.0,0.00022191,2]
[381614986,1756296659292,-480.0,0.00022191,2]
[381614988,1756296659301,-480.0,0.00022191,2]
[381614990,1756296659310,-480.0,0.00022191,2]
[381614992,1756296659319,-480.0,0.00022191,2]
[381614994,1756296659329,-240.90071059,0.00022191,2]
[381614996,1756296659338,-480.0,0.00022191,2]
[381614999,1756296659347,-480.0,0.00022191,2]
[381615001,1756296659357,-480.0,0.00022191,2]
[381615003,1756296659366,-480.0,0.00022191,2]
[381615005,1756296659376,-480.0,0.00022191,2]
[381615007,1756296659385,-480.0,0.00022191,2]
[381615009,1756296659394,-480.0,0.00022191,2]
[381615011,1756296659403,-480.0,0.00022191,2]
[381615012,1756296659412,-905.56,0.00022191,2]
[381615014,1756296659422,-480.0,0.00022191,2]
[381615016,1756296659431,-480.0,0.00022191,2]
[381615019,1756296659444,-480.0,0.00022191,2]
[381615020,1756296659453,-480.0,0.00022191,2]
[381615023,1756296659463,-480.0,0.00022191,2]
[381615025,1756296659472,-480.0,0.00022191,2]
[381615026,1756296659482,-1488.71,0.00022191,2]
[381615029,1756296659492,-1021.88,0.00022191,2]
[381615031,1756296659501,-480.0,0.00022191,2]
[381615032,1756296659511,-480.0,0.00022191,2]
[381615034,1756296659523,-480.0,0.00022191,2]
[381615037,1756296659532,-480.0,0.00022191,2]
[381615039,1756296659541,-733.72,0.00022191,2]
[381615040,1756296659551,-1156.45,0.00022191,2]
[381615043,1756296659560,-480.0,0.00022191,2]
[381615045,1756296659570,-480.0,0.00022191,2]
[381615047,1756296659579,-359.49173783,0.00022191,2]
[381615049,1756296659588,-480.0,0.00022191,2]
[381615051,1756296659597,-480.0,0.00022191,2]
[381615053,1756296659607,-480.0,0.00022191,2]
[381615054,1756296659616,-480.0,0.00022191,2]
[381615056,1756296659625,-480.0,0.00022191,2]
[381615058,1756296659634,-480.0,0.00022191,2]
[381615060,1756296659643,-480.0,0.00022191,2]
[381615062,1756296659652,-480.0,0.00022191,2]
[381615064,1756296659662,-480.0,0.00022191,2]
[381615066,1756296659671,-480.0,0.00022191,2]
[381615068,1756296659680,-480.0,0.00022191,2]
[381615070,1756296659689,-480.0,0.00022191,2]
[381615072,1756296659698,-480.0,0.00022191,2]
[381615074,1756296659707,-480.0,0.00022191,2]
[381615076,1756296659716,-480.0,0.00022191,2]
[381615078,1756296659726,-3030.48,0.00022191,2]
[381615080,1756296659735,-480.0,0.00022191,2]
[381615083,1756296659744,-480.0,0.00022191,2]
[381615084,1756296659754,-541.23,0.00022191,2]
[381615087,1756296659765,-480.0,0.00022191,2]
[381615088,1756296659774,-480.0,0.00022191,2]
[381615090,1756296659784,-669.2,0.00022191,2]
[381615093,1756296659794,-480.0,0.00022191,2]
[381615095,1756296659803,-480.0,0.00022191,2]
[381615097,1756296659812,-480.0,0.00022191,2]
[381615099,1756296659822,-480.0,0.00022191,2]
[381615101,1756296659831,-480.0,0.00022191,2]
[381615102,1756296659840,-4648.29,0.00022191,2]
[381615104,1756296659849,-421.63849111,0.00022191,2]
[381615106,1756296659858,-480.0,0.00022191,2]
[381615108,1756296659867,-480.0,0.00022191,2]
[381615110,1756296659877,-480.0,0.00022191,2]
[381615112,1756296659886,-2399.33,0.00022191,2]
[381615115,1756296659898,-480.0,0.00022191,2]
[381615116,1756296659907,-480.0,0.00022191,2]
[381615118,1756296659918,-480.0,0.00022191,2]
[381615120,1756296659928,-511.38866386,0.00022191,2]
[381615122,1756296659937,-1636.2,0.00022191,2]
[381615124,1756296659947,-480.0,0.00022191,2]
[381615126,1756296659956,-480.0,0.00022191,2]
[381615128,1756296659965,-480.0,0.00022191,2]
[381615130,1756296659974,-640.2,0.00022191,2]
[381615132,1756296659984,-480.0,0.00022191,2]
[381615134,1756296659993,-480.0,0.00022191,2]
[381615136,1756296660003,-480.0,0.00022191,2]
[381615138,1756296660015,-480.0,0.00022191,2]
[381615140,1756296660027,-480.0,0.00022191,2]
[381615142,1756296660037,-480.0,0.00022191,2]
[381615144,1756296660047,-480.0,0.00022191,2]
[381615146,1756296660057,-480.0,0.00022191,2]
[381615148,1756296660067,-480.0,0.00022191,2]
[381615150,1756296660076,-480.0,0.00022191,2]
[381615152,1756296660086,-480.0,0.00022191,2]
[381615155,1756296660096,-480.0,0.00022191,2]
[381615157,1756296660106,-480.0,0.00022191,2]
[381615159,1756296660116,-480.0,0.00022191,2]
[381615161,1756296660125,-480.0,0.00022191,2]
[381615163,1756296660135,-480.0,0.00022191,2]
[381615164,1756296660145,-656.99,0.00022191,2]
[381615166,1756296660155,-641.73,0.00022191,2]
[381615169,1756296660165,-480.0,0.00022191,2]
[381615170,1756296660174,-480.0,0.00022191,2]
[381615172,1756296660183,-480.0,0.00022191,2]
[381615174,1756296660192,-480.0,0.00022191,2]
[381615177,1756296660203,-2039.16,0.00022191,2]
[381615178,1756296660213,-480.0,0.00022191,2]
[381615181,1756296660222,-480.0,0.00022191,2]
[381615183,1756296660232,-480.0,0.00022191,2]
[381615185,1756296660241,-480.0,0.00022191,2]
[381615187,1756296660251,-480.0,0.00022191,2]
[381615189,1756296660260,-480.0,0.00022191,2]
[381615190,1756296660274,-480.0,0.00022191,2]
[381615193,1756296660284,-304.35,0.00022191,2]
[381615194,1756296660294,-480.0,0.00022191,2]
[381615196,1756296660304,-480.0,0.00022191,2]
[381615199,1756296660314,-480.0,0.00022191,2]
[381615201,1756296660324,-480.0,0.00022191,2]
[381615203,1756296660333,-480.0,0.00022191,2]
[381615205,1756296660343,-480.0,0.00022191,2]
[381615207,1756296660352,-480.0,0.00022191,2]
[381615209,1756296660361,-480.0,0.00022191,2]
[381615211,1756296660371,-480.0,0.00022191,2]
[381615213,1756296660380,-151.0,0.000223,9]
[381615214,1756296660389,-1639.95227679,0.00022365,2]
[381615216,1756296660399,-1973.31062629,0.00022416,2]
[381615218,1756296660408,-1500.0,0.00022416,2]
[381615220,1756296660418,-160.373,0.00022464,2]
[381615222,1756296660427,-480.0,0.00022465,2]
[381615225,1756296660438,-332.50330225,0.00022465,2]
[381615227,1756296660450,-247.55,0.00022465,2]
[381615228,1756296660459,-480.0,0.00022465,2]
[381615230,1756296660468,-480.0,0.00022465,2]
[381615233,1756296660479,-480.0,0.00022465,2]
[381615235,1756296660488,-480.0,0.00022465,2]
[381615236,1756296660498,-1507.42,0.00022465,2]
[381615238,1756296660508,-480.0,0.00022465,2]
[381615240,1756296660520,-480.0,0.00022465,2]
[381615242,1756296660529,-159.34,0.00022465,2]
[381615244,1756296660538,-480.0,0.00022465,2]
[381615246,1756296660548,-480.0,0.00022465,2]
[381615248,1756296660557,-562.37,0.00022465,2]
[381615250,1756296660566,-480.0,0.00022465,2]
[381615252,1756296660575,-216.26,0.00022465,2]
[381615254,1756296660584,-480.0,0.00022465,2]
[381615256,1756296660594,-372.13,0.00022465,2]
[381615258,1756296660603,-480.0,0.00022465,2]
[381615260,1756296660612,-106.10710082,0.00022465,2]
[381616271,1756296794893,1193.44358128,0.000199,2]
[381616272,1756296828662,5000.0,0.0002001,2]
[381616273,1756296845129,3695.52160183,0.0002001,2]
[381616274,1756296845153,1304.47839817,0.0002001,2]
[381616275,1756296846268,450.47454,0.00013699,2]
[381616276,1756296850233,-271.86637142,0.00020187,2]
[381616277,1756296854269,-178.60816858,0.00020187,2]
[381616278,1756296861218,5000.0,0.0002001,2]
[381616279,1756296863990,3245.05706183,0.00019562,2]
[381616280,1756296864012,6754.94293817,0.00019562,2]
[381616281,1756296866550,160.0,0.0002,3]
[381616282,1756296869740,421.38688257,0.0002001,2]
[381616283,1756296879032,2663.68017926,0.0002001,2]
[381616284,1756296879055,1576.40038088,0.0002001,2]
[381616285,1756296902091,683.6037885,0.00019583,2]
[381616287,1756296970309,1197.45931325,0.000199,2]
[381616300,1756297157950,1157.54400276,0.000199,2]
[381616301,1756297172222,160.0,0.0002,3]
[381616312,1756297332314,1118.95920261,0.000199,2]
[381616313,1756297403239,302.45563732,0.00019602,2]
[381616314,1756297403308,302.45563732,0.00019799,2]
[381616315,1756297403471,453.68345598,0.00019995,4]
[381616316,1756297404493,-248.508858,0.00020191,4]
[381616317,1756297406755,-179.249725,0.00020191,4]
[381616318,1756297409036,-25.92487298,0.00020191,4]
[381616319,1756297412757,248.508858,0.0002001,2]
[381616320,1756297421387,354.85160175,0.0002001,2]
[381616328,1756297507308,1081.66056261,0.000199,2]
[381616334,1756297607091,-167.3945075,0.0002037,2]
[381616335,1756297607112,-30.19539626,0.00020387,4]
[381616339,1756297663471,258.5526195,0.00019585,2]
[381616340,1756297682807,1045.60521032,0.000199,2]
[381616343,1756297717598,58.2697292,0.0002,20]
[381616344,1756297717624,3579.11224586,0.0002,20]
[381616350,1756297787552,-795.21748973,0.0002037,2]
[381616351,1756297787580,-220.0,0.00020431,2]
[381616352,1756297787608,-185.08373225,0.00020556,2]
[381616353,1756297787636,-1200.0,0.00020608,2]
[381616354,1756297787663,-1200.0,0.00020608,2]
[381616355,1756297787692,-300.0,0.00020608,2]
[381616356,1756297787720,-917.28755604,0.00020609,3]
[381616358,1756297787986,-364.83244396,0.00020609,3]
[381616359,1756297788014,-641.06,0.00020609,3]
[381616360,1756297788042,-320.53,0.00020609,3]
[381616361,1756297788070,-160.26,0.00020609,3]
[381616362,1756297788097,-480.81,0.00020609,3]
[381616363,1756297788126,-950.48,0.00020609,10]
[381616364,1756297788157,-500.0,0.00020618,2]
[381616365,1756297788187,-500.0,0.00020618,2]
[381616366,1756297788216,-500.0,0.00020618,2]
[381616367,1756297788247,-500.0,0.00020618,2]
[381616368,1756297788780,-271.82852311,0.00020618,2]
[381616369,1756297789476,795.21748973,0.00020608,2]
[381616370,1756297792387,150.21699129,0.00020456,2]
[381616371,1756297792700,150.21699127,0.00020489,2]
[381616372,1756297793076,150.21699127,0.00020522,2]
[381616373,1756297793405,150.21699127,0.00020555,2]
[381616374,1756297794765,792.07,0.00020609,10]
[381616375,1756297798855,150.0,0.00020618,2]
[381616376,1756297803771,300.0,0.00020618,2]
[381616377,1756297805713,1200.0,0.00020618,2]
[381616378,1756297807481,660.06,0.00020609,10]
[381616379,1756297821246,550.05,0.00020609,10]
[381616380,1756297824455,791.2974039,0.00020153,2]
[381616422,1756297832068,-37213.53237727,0.00020619,2]
[381616629,1756297835640,458.37,0.00020609,10]
[381617640,1756297847800,381.98,0.00020609,10]
[381618676,1756297858396,318.32,0.00020609,10]
[381618693,1756297858547,1010.75170329,0.000199,2]
[381619115,1756297863746,300.0,0.00020618,2]
[381619142,1756297871580,265.26,0.00020609,10]
[381619143,1756297882058,221.05,0.00020609,10]
[381619144,1756297896086,184.21,0.00020609,10]
[381619145,1756297902837,306.2326185,0.00020619,2]
[381619146,1756297906523,153.51,0.00020609,10]
[381619147,1756297920195,767.57,0.00020609,10]
[381619148,1756297923799,300.0,0.00020618,2]
[381619149,1756297924469,1200.0,0.00020618,2]
[381619150,1756297929593,185.08373225,0.00020555,2]
[381619151,1756297935180,5000.0,0.00020619,2]
[381619152,1756297947952,801.32,0.00020609,3]
[381619155,1756297952359,4693.7673815,0.00020619,2]
[381619156,1756297958341,157.34994068,0.00020555,2]
[381619157,1756297958622,400.66,0.00020609,3]
[381619160,1756297965392,319.456912,0.00019863,2]
[381619161,1756297969376,200.33,0.00020609,3]
[381619163,1756297980024,601.01,0.00020609,3]
[381619164,1756297984117,300.0,0.00020618,2]
[381619165,1756297985779,413.694533,0.00013699,2]
[381619166,1756297985809,592.0,0.00020115,2]
[381619167,1756297986044,413.694533,0.00020187,2]
[381619169,1756297996297,500.0,0.00020618,2]
[381619170,1756297996387,500.0,0.00020618,2]
[381619171,1756297996439,168.90909215,0.00020618,2]
[381619172,1756297996532,500.0,0.00020618,2]
[381619173,1756297996574,500.0,0.00020618,2]
[381619174,1756298000302,10000.01,0.00020519,2]
[381619175,1756298000326,10000.01,0.00020519,2]
[381619176,1756298000349,10000.01,0.00020519,2]
[381619177,1756298000374,10000.01,0.00020519,2]
[381619178,1756298000396,10000.01,0.00020519,2]
[381619179,1756298000418,10000.01,0.00020519,2]
[381619180,1756298000440,10000.01,0.00020519,2]
[381619181,1756298000462,10000.01,0.00020519,2]
[381619182,1756298000484,10000.01,0.00020519,2]
[381619183,1756298000505,10000.01,0.00020519,2]